[Event "Asian Zonal-ch 3.5 Women 2019"]
[Site "Zi Bo"]
[Date "2019.09.08"]
[Round "6.11"]
[White "Ha, Yihan"]
[Black "Wang, Yuehan"]
[Result "1-0"]
[ECO "E39"]
[WhiteElo "1580"]
[BlackElo "1600"]
[Annotator "NA"]
[PlyCount "211"]
[EventDate "2019.09.05"]
[EventType "swiss"]
[EventCountry "CHN"]
[SourceTitle "playchess.com"]
[Source "ChessBase"]
[SourceQuality "1"]
[TimeControl "5400+30"]

1. d4 {[%emt 0:00:00]} Nf6 {[%emt 0:00:00]} 2. c4 {[%emt 0:00:00]} e6 {[%emt 0:00:00]} 3. Nc3 {[%emt 0:00:00]} Bb4 {[%emt 0:00:00]} 4. Qc2 {[%emt 0:00:00]} O-O {[%emt 0:00:00]} 5. Nf3 {[%emt 0:00:00]} c5 {[%emt 0:00:00]} 6. dxc5 {[%emt 0:00:13]} Na6 {[%emt 0:01:22]} 7. g3 {[%emt 0:00:08]} Nxc5 {[%emt 0:00:38]} 8. Bg2 {[%emt 0:00:07]} Nce4 {[%emt 0:03:20]} 9. Bd2 {[%emt 0:00:20]} Nxd2 {[%emt 0:01:17]} 10. Nxd2 {[%emt 0:00:06]} a6 {[%emt 0:06:02]} 11. O-O {[%emt 0:00:24]} Qc7 {[%emt 0:00:23]} 12. e4 {[%emt 0:01:09]} d6 {[%emt 0:04:42]} 13. a3 {[%emt 0:01:52]} Bc5 {[%emt 0:00:12]} 14. b4 {[%emt 0:06:46]} Ba7 {[%emt 0:02:43]} 15. Rad1 {[%emt 0:05:11]} Bd7 {[%emt 0:01:36]} 16. h3 {[%emt 0:03:37]} Rac8 {[%emt 0:10:09]} 17. Qd3 {[%emt 0:02:04]} Rfd8 {[%emt 0:01:32]} 18. Rc1 {[%emt 0:01:55]} Be8 {[%emt 0:00:14]} 19. Qe2 {[%emt 0:07:59]} Nd7 {[%emt 0:06:40]} 20. Rfd1 {[%emt 0:06:21]} Ne5 {[%emt 0:00:00]} 21. Bf1 {[%emt 0:02:24]} Ng6 {[%emt 0:09:41]} 22. h4 {[%emt 0:09:49]} d5 {[%emt 0:00:00]} 23. c5 {[%emt 0:04:53]} d4 {[%emt 0:00:00]} 24. Na2 {[%emt 0:00:40]} Bb5 {[%emt 0:00:00]} 25. Qf3 {[%emt 0:01:30]} Ne5 {[%emt 0:00:00]} 26. Qf4 {[%emt 0:00:26]} Ba4 {[%emt 0:01:37]} 27. Re1 {[%emt 0:00:54]} Bb8 {[%emt 0:01:44]} 28. h5 {[%emt 0:11:00]} Qe7 {[%emt 0:11:16]} 29. Qh4 {[%emt 0:02:12]} Qxh4 {[%emt 0:00:54]} 30. gxh4 {[%emt 0:00:06]} Ng4 {[%emt 0:00:06]} 31. Nc4 {[%emt 0:08:43]} d3 {[%emt 0:10:34]} 32. Bxd3 {[%emt 0:01:56]} Rxd3 {[%emt 0:00:12]} 33. Nb6 {[%emt 0:00:06]} Rcd8 {[%emt 0:06:13]} 34. Nxa4 {[%emt 0:00:20]} Bh2+ {[%emt 0:00:41]} 35. Kf1 {[%emt 0:01:29]} Rxa3 {[%emt 0:06:50]} 36. N2c3 {[%emt 0:01:37]} Rb3 {[%emt 0:01:05]} 37. Red1 {[%emt 0:02:38]} Rxd1+ {[%emt 0:02:54]} 38. Rxd1 {[%emt 0:00:06]} Kf8 {[%emt 0:00:34]} 39. Rb1 {[%emt 0:03:53]} Rxb1+ {[%emt 0:00:32]} 40. Nxb1 {[%emt 0:00:01]} Nf6 {[%emt 0:00:07]} 41. Nd2 {[%emt 0:00:55]} Bf4 {[%emt 0:01:16]} 42. Nc4 {[%emt 0:01:26]} Nxe4 {[%emt 0:03:02]} 43. Na5 {[%emt 0:00:10]} Bd2 {[%emt 0:00:07]} 44. Nxb7 {[%emt 0:00:57]} Bxb4 {[%emt 0:01:39]} 45. Nb6 {[%emt 0:02:49]} Nc3 {[%emt 0:03:02]} 46. c6 {[%emt 0:01:03]} Nb5 {[%emt 0:00:02]} 47. Na8 {[%emt 0:00:16]} Ke7 {[%emt 0:00:33]} 48. Nb6 {[%emt 0:04:25]} Nc7 {[%emt 0:00:13]} 49. Ke2 {[%emt 0:00:29]} h6 {[%emt 0:00:47]} 50. Kd3 {[%emt 0:00:41]} Be1 {[%emt 0:00:13]} 51. Ke2 {[%emt 0:00:49]} Bc3 {[%emt 0:00:09]} 52. Kd3 {[%emt 0:01:09]} Bf6 {[%emt 0:00:23]} 53. Nc8+ {[%emt 0:00:26]} Ke8 {[%emt 0:01:35]} 54. Ncd6+ {[%emt 0:01:54]} Kf8 {[%emt 0:00:10]} 55. Kc4 {[%emt 0:01:26]} Bxh4 {[%emt 0:00:19]} 56. Ne4 {[%emt 0:01:00]} f5 {[%emt 0:00:38]} 57. Ng3 {[%emt 0:00:37]} Be7 {[%emt 0:01:55]} 58. Ne2 {[%emt 0:00:35]} Kf7 {[%emt 0:01:32]} 59. Nf4 {[%emt 0:01:21]} Nb5 {[%emt 0:02:14]} 60. Nc5 {[%emt 0:02:20]} Nc7 {[%emt 0:01:13]} 61. Nb7 {[%emt 0:00:49]} Ke8 {[%emt 0:01:28]} 62. Ng6 {[%emt 0:01:37]} Ba3 {[%emt 0:00:48]} 63. Kb3 {[%emt 0:00:28]} Bc1 {[%emt 0:00:53]} 64. Ka4 {[%emt 0:00:33]} Bd2 {[%emt 0:00:10]} 65. Ne5 {[%emt 0:00:07]} Ke7 {[%emt 0:00:26]} 66. f3 {[%emt 0:01:02]} Bc3 {[%emt 0:01:01]} 67. Nc4 {[%emt 0:00:25]} e5 {[%emt 0:00:19]} 68. Nc5 {[%emt 0:00:37]} Kd8 {[%emt 0:00:25]} 69. Nd6 {[%emt 0:00:19]} Nd5 {[%emt 0:01:00]} 70. Nxa6 {[%emt 0:00:26]} Bd4 {[%emt 0:00:52]} 71. Nxf5 {[%emt 0:00:25]} Nc7 {[%emt 0:00:34]} 72. Nxc7 {[%emt 0:00:37]} Kxc7 {[%emt 0:00:02]} 73. Kb5 {[%emt 0:00:03]} Bf2 {[%emt 0:00:54]} 74. Nxg7 {[%emt 0:00:18]} Be3 {[%emt 0:00:29]} 75. Ne6+ {[%emt 0:00:20]} Kc8 {[%emt 0:00:17]} 76. Kc4 {[%emt 0:00:42]} Bd2 {[%emt 0:00:29]} 77. Kd5 {[%emt 0:00:11]} Bc3 {[%emt 0:00:06]} 78. Kd6 {[%emt 0:00:16]} Bb2 {[%emt 0:00:39]} 79. Ke7 {[%emt 0:00:25]} Bc3 {[%emt 0:00:11]} 80. Kf7 {[%emt 0:00:05]} Bb2 {[%emt 0:00:16]} 81. Kg6 {[%emt 0:00:36]} Bc1 {[%emt 0:00:04]} 82. Kf5 {[%emt 0:00:52]} Bb2 {[%emt 0:00:04]} 83. Ke4 {[%emt 0:00:45]} Bc3 {[%emt 0:00:15]} 84. Kd5 {[%emt 0:00:19]} Bb2 {[%emt 0:00:05]} 85. Kd6 {[%emt 0:00:57]} Ba1 {[%emt 0:00:14]} 86. c7 {[%emt 0:00:35]} Bc3 {[%emt 0:00:25]} 87. Kc6 {[%emt 0:00:44]} Ba5 {[%emt 0:00:19]} 88. Kb5 {[%emt 0:00:40]} Bd2 {[%emt 0:01:03]} 89. Kb6 {[%emt 0:00:29]} Be3+ {[%emt 0:00:24]} 90. Nc5 {[%emt 0:00:29]} e4 {[%emt 0:02:44]} 91. fxe4 {[%emt 0:00:18]} Bf4 {[%emt 0:00:04]} 92. Ne6 {[%emt 0:00:17]} Be5 {[%emt 0:00:06]} 93. Kc6 {[%emt 0:00:08]} Bg3 {[%emt 0:00:09]} 94. Kd5 {[%emt 0:00:11]} Kd7 {[%emt 0:00:05]} 95. e5 {[%emt 0:01:43]} Bh2 {[%emt 0:00:18]} 96. Ke4 {[%emt 0:00:22]} Bg3 {[%emt 0:00:48]} 97. Kf5 {[%emt 0:00:05]} Bf2 {[%emt 0:00:08]} 98. Kg6 {[%emt 0:00:39]} Be3 {[%emt 0:00:04]} 99. Kf7 {[%emt 0:00:29]} Bd2 {[%emt 0:00:49]} 100. Nf8+ {[%emt 0:00:13]} Kxc7 {[%emt 0:00:06]} 101. e6 {[%emt 0:00:02]} Bg5 {[%emt 0:00:25]} 102. e7 {[%emt 0:00:06]} Bxe7 {[%emt 0:00:05]} 103. Kxe7 {[%emt 0:00:04]} Kc6 {[%emt 0:00:09]} 104. Kf6 {[%emt 0:00:05]} Kd6 {[%emt 0:00:12]} 105. Ne6 {[%emt 0:00:17]} Kd7 {[%emt 0:00:09]} 106. Ng7 {[%emt 0:00:11]} 1-0

[Event "Asian Zonal-ch 3.5 Women 2019"]
[Site "Zi Bo"]
[Date "2019.09.08"]
[Round "6.12"]
[White "Cai Youyang"]
[Black "Zhao, Caidi"]
[Result "1-0"]
[ECO "A16"]
[WhiteElo "1910"]
[BlackElo "1540"]
[Annotator "NA"]
[PlyCount "55"]
[EventDate "2019.09.05"]
[EventType "swiss"]
[EventCountry "CHN"]
[SourceTitle "playchess.com"]
[Source "ChessBase"]
[SourceQuality "1"]
[TimeControl "5400+30"]

1. Nf3 {[%emt 0:00:00]} Nf6 {[%emt 0:00:00]} 2. c4 {[%emt 0:00:00]} g6 {[%emt 0:00:05]} 3. Nc3 {[%emt 0:00:00]} d5 {[%emt 0:00:27]} 4. cxd5 {[%emt 0:00:00]} Nxd5 {[%emt 0:00:08]} 5. h4 {[%emt 0:00:00]} h5 {[%emt 0:01:55]} 6. e4 {[%emt 0:00:11]} Nxc3 {[%emt 0:00:24]} 7. bxc3 {[%emt 0:00:06]} Bg7 {[%emt 0:00:37]} 8. Ba3 {[%emt 0:00:14]} Bg4 {[%emt 0:02:44]} 9. Qb3 {[%emt 0:08:43]} Bc8 {[%emt 0:09:30]} 10. Bc4 {[%emt 0:00:54]} e6 {[%emt 0:03:14]} 11. d4 {[%emt 0:08:09]} c6 {[%emt 0:09:20]} 12. Rd1 {[%emt 0:06:59]} b5 {[%emt 0:04:11]} 13. Be2 {[%emt 0:00:51]} a6 {[%emt 0:03:56]} 14. O-O {[%emt 0:04:00]} Bf8 {[%emt 0:03:10]} 15. Bxf8 {[%emt 0:07:35]} Kxf8 {[%emt 0:01:56]} 16. Ng5 {[%emt 0:00:11]} Qf6 {[%emt 0:02:54]} 17. f4 {[%emt 0:01:41]} Qe7 {[%emt 0:08:07]} 18. f5 {[%emt 0:10:31]} exf5 {[%emt 0:06:24]} 19. exf5 {[%emt 0:00:22]} Bxf5 {[%emt 0:01:48]} 20. Bd3 {[%emt 0:00:15]} Kg7 {[%emt 0:05:19]} 21. Bxf5 {[%emt 0:00:52]} gxf5 {[%emt 0:00:02]} 22. Rxf5 {[%emt 0:00:51]} f6 {[%emt 0:02:27]} 23. Ne6+ {[%emt 0:00:56]} Kg6 {[%emt 0:01:49]} 24. Re1 {[%emt 0:02:43]} Qd7 {[%emt 0:04:18]} 25. Qc2 {[%emt 0:00:09]} Kf7 {[%emt 0:02:01]} 26. Ng5+ {[%emt 0:00:22]} Kg7 {[%emt 0:00:37]} 27. Re6 {[%emt 0:00:31]} Rh6 {[%emt 0:04:54]} 28. Rfxf6 {[%emt 0:00:15]} 1-0

[Event "Asian Zonal-ch 3.5 Women 2019"]
[Site "Zi Bo"]
[Date "2019.09.09"]
[Round "7.2"]
[White "Zhai, Mo"]
[Black "Yan, Tianqi"]
[Result "1/2-1/2"]
[ECO "E05"]
[WhiteElo "2360"]
[BlackElo "2122"]
[Annotator "ChessBase"]
[PlyCount "205"]
[EventDate "2019.09.05"]
[EventType "swiss"]
[EventCountry "CHN"]
[SourceTitle "playchess.com"]
[Source "ChessBase"]
[SourceQuality "1"]
[TimeControl "5400+30"]

1. Nf3 {[%emt 0:00:01]} d5 {[%emt 0:02:56]} 2. g3 {[%emt 0:00:48]} Nf6 {[%emt 0:00:30]} 3. Bg2 {[%emt 0:00:29]} e6 {[%emt 0:02:11]} 4. O-O {[%emt 0:01:57]} Be7 {[%emt 0:02:20]} 5. c4 {[%emt 0:02:04]} O-O {[%emt 0:01:12]} 6. d4 {[%emt 0:00:28]} dxc4 {[%emt 0:01:22]} 7. Ne5 {[%emt 0:06:17]} c5 {[%emt 0:00:40]} 8. dxc5 {[%emt 0:05:04]} Qc7 {[%emt 0:01:47]} 9. Nxc4 {[%emt 0:10:31]} Qxc5 {[%emt 0:01:28]} 10. Qb3 {[%emt 0:05:55]} e5 {[%emt 0:12:56]} 11. Be3 {[%emt 0:06:44]} Qc7 {[%emt 0:00:14]} 12. Nc3 {[%emt 0:01:43]} Nc6 {[%emt 0:01:09]} 13. Nb5 {[%emt 0:02:42]} Qb8 {[%emt 0:01:54]} 14. Bxc6 {[%emt 0:05:44]} bxc6 {[%emt 0:00:02]} 15. Nxa7 {[%emt 0:00:16]} Qc7 {[%emt 0:12:31]} 16. Qb6 {[%emt 0:05:16]} Qd7 {[%emt 0:07:37]} 17. Nxc6 {[%emt 0:05:35]} Nd5 {[%emt 0:06:06]} 18. Nxe7+ {[%emt 0:00:56]} Qxe7 {[%emt 0:00:44]} 19. Qd6 {[%emt 0:09:22]} Qb7 {[%emt 0:02:42]} 20. Qxe5 {[%emt 0:08:41]} Bh3 {[%emt 0:01:26]} 21. Nd6 {[%emt 0:00:16]} Qc6 {[%emt 0:00:12]} 22. Nf5 {[%emt 0:00:20]} Bxf5 {[%emt 0:02:56]} 23. Qxf5 {[%emt 0:00:02]} Nxe3 {[%emt 0:00:07]} 24. fxe3 {[%emt 0:00:02]} Rae8 {[%emt 0:01:13]} 25. Rac1 {[%emt 0:08:30]} Qb6 {[%emt 0:10:08]} 26. Rc2 {[%emt 0:00:34]} Qxe3+ {[%emt 0:01:12]} 27. Kg2 {[%emt 0:01:14]} Re6 {[%emt 0:01:18]} 28. Rf3 {[%emt 0:00:37]} Qa7 {[%emt 0:02:25]} 29. Ra3 {[%emt 0:05:31]} Qe7 {[%emt 0:00:42]} 30. Qf3 {[%emt 0:01:14]} Rf6 {[%emt 0:01:00]} 31. Qd5 {[%emt 0:00:41]} Re6 {[%emt 0:01:58]} 32. Qc4 {[%emt 0:02:06]} Re4 {[%emt 0:02:20]} 33. Qd3 {[%emt 0:00:55]} h6 {[%emt 0:00:35]} 34. Rac3 {[%emt 0:00:34]} Re8 {[%emt 0:01:12]} 35. Rc8 {[%emt 0:01:33]} Re3 {[%emt 0:03:05]} 36. Rxe8+ {[%emt 0:00:31]} Qxe8 {[%emt 0:00:02]} 37. Qc4 {[%emt 0:00:32]} Kh7 {[%emt 0:01:40]} 38. Kf2 {[%emt 0:00:41]} Re6 {[%emt 0:00:33]} 39. Rc3 {[%emt 0:00:46]} Qb8 {[%emt 0:01:34]} 40. b4 {[%emt 0:01:10]} Qa7+ {[%emt 0:01:18]} 41. Kf1 {[%emt 0:00:26]} Ra6 {[%emt 0:01:25]} 42. Qe4+ {[%emt 0:01:09]} g6 {[%emt 0:00:04]} 43. Qe5 {[%emt 0:00:59]} Rxa2 {[%emt 0:00:52]} 44. Kg2 {[%emt 0:00:22]} Qb7+ {[%emt 0:01:53]} 45. Rf3 {[%emt 0:00:04]} Ra4 {[%emt 0:02:28]} 46. Qe8 {[%emt 0:00:18]} Rxb4 {[%emt 0:00:14]} 47. Qxf7+ {[%emt 0:00:04]} Qxf7 {[%emt 0:00:04]} 48. Rxf7+ {[%emt 0:00:00]} Kg8 {[%emt 0:00:01]} 49. Ra7 {[%emt 0:00:07]} Rb3 {[%emt 0:00:33]} 50. Kf2 {[%emt 0:00:11]} g5 {[%emt 0:00:47]} 51. h3 {[%emt 0:00:18]} Rb5 {[%emt 0:00:48]} 52. Kf3 {[%emt 0:00:20]} Rb4 {[%emt 0:01:38]} 53. Rd7 {[%emt 0:00:54]} Ra4 {[%emt 0:01:33]} 54. Re7 {[%emt 0:00:44]} Rb4 {[%emt 0:00:24]} 55. Re4 {[%emt 0:00:53]} Rb6 {[%emt 0:01:18]} 56. Kg4 {[%emt 0:00:24]} Kf7 {[%emt 0:00:10]} 57. Kf5 {[%emt 0:00:31]} Rf6+ {[%emt 0:00:20]} 58. Ke5 {[%emt 0:00:08]} Re6+ {[%emt 0:00:07]} 59. Kd5 {[%emt 0:00:05]} Ra6 {[%emt 0:00:04]} 60. Rd4 {[%emt 0:02:20]} Re6 {[%emt 0:00:20]} 61. Re4 {[%emt 0:00:25]} Ra6 {[%emt 0:00:02]} 62. Rd4 {[%emt 0:00:03]} Re6 {[%emt 0:00:07]} 63. e4 {[%emt 0:00:04]} Kf6 {[%emt 0:01:35]} 64. Ra4 {[%emt 0:00:18]} Re5+ {[%emt 0:00:28]} 65. Kd4 {[%emt 0:00:24]} Re6 {[%emt 0:00:13]} 66. Ra8 {[%emt 0:00:29]} Rd6+ {[%emt 0:00:20]} 67. Ke3 {[%emt 0:00:08]} Rb6 {[%emt 0:00:23]} 68. Rf8+ {[%emt 0:01:14]} Ke6 {[%emt 0:01:51]} 69. Kf3 {[%emt 0:01:05]} Rb3+ {[%emt 0:01:00]} 70. Kg2 {[%emt 0:00:29]} Re3 {[%emt 0:00:39]} 71. Rh8 {[%emt 0:00:34]} Rxe4 {[%emt 0:00:05]} 72. Rxh6+ {[%emt 0:00:06]} Kf7 {[%emt 0:00:21]} 73. Ra6 {[%emt 0:00:13]} Rb4 {[%emt 0:00:10]} 74. Ra3 {[%emt 0:00:49]} Kg6 {[%emt 0:00:10]} 75. Rc3 {[%emt 0:00:51]} Ra4 {[%emt 0:00:06]} 76. g4 {[%emt 0:00:13]} Rb4 {[%emt 0:00:19]} 77. Kf3 {[%emt 0:00:12]} Ra4 {[%emt 0:00:17]} 78. Rc6+ {[%emt 0:00:23]} Kg7 {[%emt 0:00:07]} 79. Re6 {[%emt 0:00:08]} Kf7 {[%emt 0:00:49]} 80. Re4 {[%emt 0:00:29]} Ra3+ {[%emt 0:00:09]} 81. Re3 {[%emt 0:00:02]} Ra4 {[%emt 0:00:07]} 82. Kg3 {[%emt 0:00:08]} Kg6 {[%emt 0:00:15]} 83. Rb3 {[%emt 0:00:29]} Ra6 {[%emt 0:00:17]} 84. Kf3 {[%emt 0:01:36]} Ra4 {[%emt 0:00:12]} 85. Rb6+ {[%emt 0:00:16]} Kg7 {[%emt 0:00:19]} 86. Rb5 {[%emt 0:00:04]} Kg6 {[%emt 0:00:07]} 87. Ke3 {[%emt 0:00:17]} Rc4 {[%emt 0:01:48]} 88. Rd5 {[%emt 0:00:08]} Ra4 {[%emt 0:00:19]} 89. Rd4 {[%emt 0:00:09]} Ra3+ {[%emt 0:00:24]} 90. Ke4 {[%emt 0:00:08]} Rxh3 {[%emt 0:00:24]} 91. Rd6+ {[%emt 0:00:02]} Kg7 {[%emt 0:00:19]} 92. Kf5 {[%emt 0:00:02]} Ra3 {[%emt 0:00:09]} 93. Kxg5 {[%emt 0:00:12]} Ra5+ {[%emt 0:00:06]} 94. Kh4 {[%emt 0:00:08]} Rb5 {[%emt 0:00:10]} 95. Ra6 {[%emt 0:00:24]} Rb7 {[%emt 0:01:20]} 96. Kh5 {[%emt 0:00:14]} Rb5+ {[%emt 0:00:15]} 97. g5 {[%emt 0:00:02]} Rb7 {[%emt 0:00:07]} 98. Ra5 {[%emt 0:00:21]} Rc7 {[%emt 0:00:15]} 99. Kg4 {[%emt 0:00:41]} Rb7 {[%emt 0:00:09]} 100. Kf5 {[%emt 0:00:33]} Rc7 {[%emt 0:00:30]} 101. Ra6 {[%emt 0:01:08]} Rc5+ {[%emt 0:00:08]} 102. Kg4 {[%emt 0:00:04]} Rc4+ {[%emt 0:00:38]} 103. Kh5 {[%emt 0:00:06]} 1/2-1/2

[Event "Asian Zonal-ch 3.5 Women 2019"]
[Site "Zi Bo"]
[Date "2019.09.09"]
[Round "7.4"]
[White "Zhang, Lanlin"]
[Black "Gu, Tianlu"]
[Result "0-1"]
[ECO "C92"]
[WhiteElo "2203"]
[BlackElo "2239"]
[Annotator "ChessBase"]
[PlyCount "62"]
[EventDate "2019.09.05"]
[EventType "swiss"]
[EventCountry "CHN"]
[SourceTitle "playchess.com"]
[Source "ChessBase"]
[SourceQuality "1"]
[TimeControl "5400+30"]

1. e4 {[%emt 0:00:14]} e5 {[%emt 0:00:00]} 2. Nf3 {[%emt 0:02:10]} Nc6 {[%emt 0:00:03]} 3. Bb5 {[%emt 0:04:00]} a6 {[%emt 0:00:11]} 4. Ba4 {[%emt 0:00:03]} Nf6 {[%emt 0:00:10]} 5. O-O {[%emt 0:00:05]} b5 {[%emt 0:00:09]} 6. Bb3 {[%emt 0:00:03]} Be7 {[%emt 0:00:10]} 7. Re1 {[%emt 0:01:57]} d6 {[%emt 0:00:17]} 8. c3 {[%emt 0:00:06]} O-O {[%emt 0:00:29]} 9. h3 {[%emt 0:01:12]} Bb7 {[%emt 0:00:19]} 10. d4 {[%emt 0:00:18]} Re8 {[%emt 0:00:44]} 11. Nbd2 {[%emt 0:03:27]} exd4 {[%emt 0:00:28]} 12. cxd4 {[%emt 0:01:24]} Nd7 {[%emt 0:00:15]} 13. a4 {[%emt 0:02:26]} Bf6 {[%emt 0:09:20]} 14. Nf1 {[%emt 0:05:53]} Na5 {[%emt 0:03:59]} 15. Bc2 {[%emt 0:08:30]} c5 {[%emt 0:00:47]} 16. Ng3 {[%emt 0:15:56]} g6 {[%emt 0:01:38]} 17. Bf4 {[%emt 0:01:47]} cxd4 {[%emt 0:03:15]} 18. Nxd4 {[%emt 0:01:30]} Qb6 {[%emt 0:03:53]} 19. Nf3 {[%emt 0:11:34]} Bxb2 {[%emt 0:08:53]} 20. Rb1 {[%emt 0:00:03]} Bc3 {[%emt 0:06:05]} 21. Be3 {[%emt 0:09:36]} Nc5 {[%emt 0:05:39]} 22. Ng5 {[%emt 0:03:03]} Bxe1 {[%emt 0:05:09]} 23. Qf3 {[%emt 0:02:58]} Qc7 {[%emt 0:00:20]} 24. Rxe1 {[%emt 0:03:34]} Nc4 {[%emt 0:04:27]} 25. Bd4 {[%emt 0:04:43]} Ne5 {[%emt 0:00:55]} 26. Qf4 {[%emt 0:02:05]} h6 {[%emt 0:00:32]} 27. Nf3 {[%emt 0:00:08]} Ne6 {[%emt 0:00:06]} 28. Qxh6 {[%emt 0:03:51]} Nxf3+ {[%emt 0:00:36]} 29. gxf3 {[%emt 0:00:04]} Nxd4 {[%emt 0:00:06]} 30. Nh5 {[%emt 0:00:03]} gxh5 {[%emt 0:01:06]} 31. Kg2 {[%emt 0:01:14]} Re6 {[%emt 0:00:23]} 0-1

[Event "Asian Zonal-ch 3.5 Women 2019"]
[Site "Zi Bo"]
[Date "2019.09.09"]
[Round "7.6"]
[White "Bai, Xue"]
[Black "Li, Yunshan"]
[Result "0-1"]
[ECO "C48"]
[WhiteElo "2093"]
[BlackElo "2261"]
[Annotator "ChessBase"]
[PlyCount "46"]
[EventDate "2019.09.05"]
[EventType "swiss"]
[EventCountry "CHN"]
[SourceTitle "playchess.com"]
[Source "ChessBase"]
[SourceQuality "1"]
[TimeControl "5400+30"]

1. e4 {[%emt 0:00:00]} e5 {[%emt 0:00:00]} 2. Nf3 {[%emt 0:00:00]} Nf6 {[%emt 0:00:00]} 3. Nc3 {[%emt 0:01:17]} Nc6 {[%emt 0:00:12]} 4. Bb5 {[%emt 0:00:28]} Nd4 {[%emt 0:00:32]} 5. Bc4 {[%emt 0:04:33]} Bc5 {[%emt 0:00:33]} 6. d3 {[%emt 0:00:34]} d6 {[%emt 0:00:40]} 7. Nxd4 {[%emt 0:06:42]} Bxd4 {[%emt 0:01:45]} 8. Bg5 {[%emt 0:03:08]} h6 {[%emt 0:02:58]} 9. Bxf6 {[%emt 0:02:13]} Qxf6 {[%emt 0:00:30]} 10. Qd2 {[%emt 0:01:20]} c6 {[%emt 0:01:29]} 11. Nd1 {[%emt 0:06:06]} Qg6 {[%emt 0:05:43]} 12. f3 {[%emt 0:00:37]} O-O {[%emt 0:08:35]} 13. c3 {[%emt 0:01:55]} Bb6 {[%emt 0:00:40]} 14. Kf1 {[%emt 0:13:21]} Kh8 {[%emt 0:07:11]} 15. g4 {[%emt 0:05:21]} f5 {[%emt 0:23:03]} 16. gxf5 {[%emt 0:04:54]} Bxf5 {[%emt 0:00:15]} 17. Qg2 {[%emt 0:04:16]} Bg4 {[%emt 0:03:15]} 18. Ke1 {[%emt 0:03:45]} Rxf3 {[%emt 0:00:40]} 19. h3 {[%emt 0:01:19]} Bh5 {[%emt 0:00:19]} 20. Qxg6 {[%emt 0:00:13]} Bxg6 {[%emt 0:00:03]} 21. a4 {[%emt 0:00:58]} Raf8 {[%emt 0:04:04]} 22. a5 {[%emt 0:01:15]} Bd8 {[%emt 0:00:33]} 23. a6 {[%emt 0:01:00]} b5 {[%emt 0:00:32]} 0-1

[Event "Asian Zonal-ch 3.5 Women 2019"]
[Site "Zi Bo"]
[Date "2019.09.09"]
[Round "7.7"]
[White "Ning, Kaiyu"]
[Black "Zhou, Zirun"]
[Result "1/2-1/2"]
[ECO "E04"]
[WhiteElo "2354"]
[BlackElo "2155"]
[Annotator "ChessBase"]
[PlyCount "125"]
[EventDate "2019.09.05"]
[EventType "swiss"]
[EventCountry "CHN"]
[SourceTitle "playchess.com"]
[Source "ChessBase"]
[SourceQuality "1"]
[TimeControl "5400+30"]

1. d4 {[%emt 0:00:00]} Nf6 {[%emt 0:00:00]} 2. c4 {[%emt 0:00:00]} e6 {[%emt 0:00:03]} 3. g3 {[%emt 0:00:00]} d5 {[%emt 0:00:54]} 4. Bg2 {[%emt 0:00:00]} dxc4 {[%emt 0:02:23]} 5. Nf3 {[%emt 0:00:00]} Nc6 {[%emt 0:00:10]} 6. Qa4 {[%emt 0:00:25]} Bb4+ {[%emt 0:00:11]} 7. Bd2 {[%emt 0:00:06]} Nd5 {[%emt 0:00:07]} 8. Bxb4 {[%emt 0:00:16]} Ndxb4 {[%emt 0:00:06]} 9. O-O {[%emt 0:00:24]} Rb8 {[%emt 0:00:28]} 10. Nc3 {[%emt 0:00:16]} a6 {[%emt 0:00:06]} 11. Ne5 {[%emt 0:00:21]} O-O {[%emt 0:00:09]} 12. Nxc6 {[%emt 0:00:05]} Nxc6 {[%emt 0:00:05]} 13. Bxc6 {[%emt 0:00:05]} bxc6 {[%emt 0:00:05]} 14. Qxc4 {[%emt 0:00:04]} Qd6 {[%emt 0:00:08]} 15. b3 {[%emt 0:00:08]} Rb4 {[%emt 0:00:07]} 16. Ne4 {[%emt 0:00:05]} Qxd4 {[%emt 0:00:09]} 17. Qxd4 {[%emt 0:00:05]} Rxd4 {[%emt 0:00:07]} 18. f3 {[%emt 0:00:32]} e5 {[%emt 0:00:37]} 19. Rfc1 {[%emt 0:01:17]} f5 {[%emt 0:00:36]} 20. Nc5 {[%emt 0:00:15]} Rf6 {[%emt 0:00:33]} 21. a3 {[%emt 0:01:10]} a5 {[%emt 0:07:32]} 22. b4 {[%emt 0:04:55]} axb4 {[%emt 0:01:04]} 23. axb4 {[%emt 0:00:49]} Rxb4 {[%emt 0:00:12]} 24. Ra7 {[%emt 0:02:24]} Rf7 {[%emt 0:09:27]} 25. Nd3 {[%emt 0:15:09]} Rb5 {[%emt 0:00:36]} 26. Ra8 {[%emt 0:04:25]} Rf8 {[%emt 0:00:12]} 27. Rxc6 {[%emt 0:00:20]} Bb7 {[%emt 0:01:53]} 28. Rxf8+ {[%emt 0:00:13]} Kxf8 {[%emt 0:00:03]} 29. Rxc7 {[%emt 0:00:09]} e4 {[%emt 0:03:47]} 30. fxe4 {[%emt 0:03:13]} Bxe4 {[%emt 0:02:05]} 31. Nf4 {[%emt 0:00:10]} Rb6 {[%emt 0:01:12]} 32. h4 {[%emt 0:02:15]} Kg8 {[%emt 0:02:46]} 33. Nh3 {[%emt 0:09:26]} h6 {[%emt 0:06:53]} 34. Kf2 {[%emt 0:10:51]} Rb7 {[%emt 0:01:28]} 35. Rc3 {[%emt 0:00:44]} Kf7 {[%emt 0:02:26]} 36. Ra3 {[%emt 0:00:22]} Re7 {[%emt 0:02:36]} 37. Ra5 {[%emt 0:01:04]} g6 {[%emt 0:01:31]} 38. Ra3 {[%emt 0:04:02]} Bc6 {[%emt 0:07:44]} 39. Rb3 {[%emt 0:01:13]} Bd5 {[%emt 0:00:51]} 40. Rc3 {[%emt 0:00:05]} Bb7 {[%emt 0:00:12]} 41. Ra3 {[%emt 0:02:13]} Bc6 {[%emt 0:00:17]} 42. Ra5 {[%emt 0:00:07]} Be4 {[%emt 0:00:12]} 43. Rb5 {[%emt 0:00:27]} Rb7 {[%emt 0:01:47]} 44. Rc5 {[%emt 0:00:23]} Ra7 {[%emt 0:02:05]} 45. Rc8 {[%emt 0:00:33]} Re7 {[%emt 0:05:07]} 46. Nf4 {[%emt 0:01:37]} g5 {[%emt 0:02:33]} 47. hxg5 {[%emt 0:00:05]} hxg5 {[%emt 0:00:08]} 48. Nh3 {[%emt 0:00:02]} Kf6 {[%emt 0:00:34]} 49. Rf8+ {[%emt 0:02:47]} Kg7 {[%emt 0:00:10]} 50. Rb8 {[%emt 0:00:10]} Kg6 {[%emt 0:00:34]} 51. Rg8+ {[%emt 0:00:57]} Rg7 {[%emt 0:00:07]} 52. Rh8 {[%emt 0:08:23]} Bd5 {[%emt 0:02:07]} 53. Rd8 {[%emt 0:00:26]} Be4 {[%emt 0:00:19]} 54. Ke3 {[%emt 0:03:17]} Bg2 {[%emt 0:00:40]} 55. Nf2 {[%emt 0:02:00]} f4+ {[%emt 0:00:32]} 56. gxf4 {[%emt 0:01:36]} Re7+ {[%emt 0:00:12]} 57. Kd2 {[%emt 0:00:06]} gxf4 {[%emt 0:00:05]} 58. Nd3 {[%emt 0:01:37]} f3 {[%emt 0:00:16]} 59. e3 {[%emt 0:03:43]} Ra7 {[%emt 0:00:52]} 60. Rf8 {[%emt 0:00:31]} Kg7 {[%emt 0:01:35]} 61. Rf4 {[%emt 0:00:16]} Rf7 {[%emt 0:02:30]} 62. Rg4+ {[%emt 0:00:07]} Kh6 {[%emt 0:00:41]} 63. Nf2 {[%emt 0:06:24]} 1/2-1/2